bitfinex/quotes_ETHUSD_20220220
["timestamp","ask_amount","ask_price","bid_price","bid_amount"]
[1645390120420,0.00580578,2634.3,2633.5,0.0025634]
[1645390120826,0.00580578,2634.3,2633.6,0.00266376]
[1645390121223,0.00580578,2634.3,2633.9,1.12263688]
[1645390121819,0.00580578,2634.3,2633.6,7.38]
[1645390121820,0.00580578,2634.3,2633.7,0.0025634]
[1645390122020,0.00580578,2634.3,2634.0,0.00266365]
[1645390122866,0.00580578,2634.3,2633.7,0.0025634]
[1645390123265,0.00580578,2634.3,2634.0,0.00266364]
[1645390124167,0.00580578,2634.3,2633.7,0.0025634]
[1645390124369,0.00580578,2634.3,2634.0,0.00266364]
[1645390125269,0.00580578,2634.3,2633.7,0.0025634]
[1645390125471,1.00581378,2634.5,2634.0,0.00266364]
[1645390126520,1.00581378,2634.5,2633.7,0.0025634]
[1645390126721,1.00581378,2634.5,2634.1,0.00266361]
[1645390127318,1.10424378,2634.5,2634.1,0.00266361]
[1645390127718,1.10424378,2634.5,2633.7,0.0025634]
[1645390128019,1.10424378,2634.5,2634.2,0.00243709]
[1645390128818,1.10424378,2634.5,2633.7,0.0025634]
[1645390129019,1.10424378,2634.5,2634.2,0.00243708]
[1645390129020,4.68554112,2634.5,2634.2,0.00243708]
[1645390129420,4.80652217,2634.5,2634.2,0.00243708]
[1645390130070,1.12679483,2634.5,2633.7,0.0025634]
[1645390130271,1.00581378,2634.5,2634.2,0.00243708]
[1645390131270,1.00581378,2634.5,2634.0,0.0025634]
[1645390131469,0.00581378,2634.5,2634.2,0.00243708]
[1645390132568,0.00581378,2634.5,2634.0,0.0025634]
[1645390132769,0.00581378,2634.5,2634.2,0.00245199]
[1645390133069,1.00581378,2634.5,2634.2,0.00245199]
[1645390133713,1.00581378,2634.5,2633.7,0.0025634]
[1645390133918,1.00581378,2634.5,2634.2,0.00236003]
[1645390134319,1.00383126,2634.5,2634.2,0.00236003]
[1645390134815,1.00383126,2634.5,2633.8,1.11145602]
[1645390134816,1.00383126,2634.5,2633.9,0.0025634]
[1645390135314,1.00383126,2634.5,2634.2,0.00236003]
[1645390135915,1.00581698,2634.5,2634.2,0.00236003]
[1645390136115,1.00581698,2634.5,2633.9,0.0025634]
[1645390136315,1.00581698,2634.5,2634.2,0.00236212]
[1645390137317,1.00581698,2634.5,2633.9,0.0025634]
[1645390137564,1.00581698,2634.5,2634.2,0.00245227]
[1645390137965,0.00581698,2634.5,2634.2,0.00245227]
[1645390138375,0.00581698,2634.5,2634.3,5.0]
[1645390138568,0.00581698,2634.5,2634.3,5.6]
[1645390138768,0.00581698,2634.5,2634.4,1.61316049]
[1645390138966,0.00105071,2635.1,2634.5,17.01022492]
[1645390139170,0.00105071,2635.1,2634.5,18.25971492]
[1645390139364,0.00105071,2635.1,2634.6,0.3]
[1645390139566,0.00105071,2635.1,2635.0,5.0]
[1645390139770,0.00105071,2635.1,2635.0,11.21873337]
[1645390139967,0.00105071,2635.1,2635.0,10.84152605]
[1645390140266,0.00105071,2635.1,2635.0,2.1175]
[1645390140468,0.00105071,2635.1,2634.9,0.3065]
[1645390140667,0.00105071,2635.1,2634.7,0.13819997]
[1645390142524,0.00105071,2635.1,2634.9,0.86491113]
[1645390143525,0.00105071,2635.1,2634.7,0.13819997]
[1645390143726,0.00105071,2635.1,2634.7,3.81792731]
[1645390143925,0.00105071,2635.1,2634.7,4.11792731]
[1645390144340,0.00105071,2635.1,2634.7,0.13819997]
[1645390144534,0.00105071,2635.1,2634.8,3.67972734]
[1645390145577,0.00105071,2635.1,2634.9,0.96448951]
[1645390145773,0.00105071,2635.1,2635.0,3.67972734]
[1645390146174,0.00105071,2635.1,2634.9,0.96448951]
[1645390146373,0.00502931,2635.0,2634.9,0.96448951]
[1645390146575,0.00502931,2635.0,2634.9,4.64421685]
[1645390147374,0.00502931,2635.0,2634.9,4.63855814]
[1645390147588,5.071e-05,2635.1,2635.0,22.0]
[1645390147779,5.071e-05,2635.1,2635.0,36.33892531]
[1645390147978,5.071e-05,2635.1,2635.0,25.46172531]
[1645390148279,0.00456668,2635.7,2635.1,6.8]
[1645390148478,0.00456668,2635.7,2635.2,0.549]
[1645390148716,0.00456668,2636.0,2635.2,1.3]
[1645390149118,0.00456668,2636.0,2635.3,3.67972734]
[1645390149418,0.00456668,2636.0,2635.4,0.3]
[1645390149819,0.00456668,2636.0,2635.2,1.6]
[1645390150018,0.00456668,2636.0,2635.3,3.67972734]
[1645390150217,0.00456668,2636.3,2635.3,3.67972734]
[1645390150932,0.00184298,2635.9,2635.5,0.94411468]
[1645390151720,0.85853427,2636.3,2635.5,0.94411468]
[1645390151918,0.00265996,2635.8,2635.5,0.94411468]
[1645390152772,0.00265996,2635.8,2634.9,0.00266094]
[1645390152971,0.00456668,2636.1,2634.8,4.27972734]
[1645390153370,0.00265997,2635.8,2634.9,0.00266091]
[1645390153768,0.97621091,2635.8,2635.1,1.1310294]
[1645390153970,0.00456668,2635.7,2635.1,1.1310294]
[1645390154371,0.00266004,2635.6,2635.1,1.1310294]
[1645390155271,0.00456668,2635.7,2635.1,1.1310294]
[1645390155470,0.00456668,2635.9,2635.1,1.1310294]
[1645390155670,0.00266007,2635.5,2635.1,1.1310294]
[1645390156527,0.00487286,2635.7,2635.1,1.1310294]
[1645390156727,0.00266008,2635.4,2635.1,1.1310294]
[1645390157824,0.00487286,2635.7,2635.1,1.1310294]
[1645390158023,0.00266005,2635.4,2635.1,1.1310294]
[1645390158926,0.00487286,2635.7,2635.1,1.1310294]
[1645390159126,0.00266005,2635.4,2635.1,1.1310294]
[1645390160188,0.00487286,2635.7,2634.5,11.07562492]
[1645390160383,0.00266005,2635.4,2634.9,0.00266063]
[1645390160579,0.55166005,2635.4,2634.9,0.00266063]
[1645390160777,0.00486646,2635.3,2634.9,0.00266063]
[1645390160976,0.10362646,2635.3,2634.9,0.00266063]
[1645390161376,0.96116603,2635.3,2634.6,1.11019673]
[1645390161576,0.96116603,2635.3,2634.9,0.00266052]
[1645390162178,0.86240603,2635.3,2634.9,0.00266052]
[1645390162579,0.86240603,2635.3,2634.6,1.11019673]
[1645390162785,0.86240603,2635.3,2634.9,0.00266052]
[1645390163182,1.2123,2635.2,2634.9,0.00266052]
[1645390163815,1.2123,2635.2,2634.5,0.01022492]
[1645390164015,1.2123,2635.2,2634.9,0.00265844]
[1645390165019,1.2123,2635.2,2634.5,0.01022492]
[1645390165219,1.2123,2635.2,2634.9,0.00265844]
[1645390166121,1.2123,2635.2,2634.5,0.01022492]
[1645390166321,1.2123,2635.2,2634.6,1.07189154]
[1645390166522,1.21716486,2635.2,2634.9,0.00265844]
[1645390167322,1.21716486,2635.2,2634.6,1.07189154]
[1645390167572,1.21716486,2635.2,2634.9,0.00266049]
[1645390168575,1.21716486,2635.2,2634.6,1.07189154]
[1645390168775,1.21716486,2635.2,2634.9,0.00266049]
[1645390169879,1.21716486,2635.2,2634.6,1.07189154]
[1645390170079,1.21716486,2635.2,2634.9,0.00114142]
[1645390170978,1.21716486,2635.2,2634.6,1.07189154]
[1645390174132,1.21716486,2635.2,2634.5,0.01022492]
[1645390174974,1.21716486,2635.2,2634.7,0.00266049]
[1645390175773,1.21716486,2635.2,2634.5,0.01022492]
[1645390175973,1.21716486,2635.2,2634.8,0.00266051]
[1645390176572,1.16850011,2635.0,2634.8,0.00266051]
[1645390176773,1.21716486,2635.2,2634.8,0.00266051]
[1645390176975,1.21716486,2635.2,2634.5,0.01022492]
[1645390177174,1.21716486,2635.2,2634.8,0.00266047]
[1645390177575,1.51716486,2635.2,2634.8,0.00266047]
[1645390177773,2.16938215,2635.2,2634.8,0.00266047]
[1645390178179,2.16938215,2635.2,2634.5,0.01022492]
[1645390178375,2.16938215,2635.2,2634.8,0.00266054]
[1645390179330,2.16938215,2635.2,2634.5,0.01022492]
[1645390179526,2.16938215,2635.2,2634.8,0.00266054]
[1645390179727,2.76938215,2635.2,2634.8,0.00266054]
[1645390179930,1.0,2635.1,2634.8,0.00266054]
[1645390180526,1.0,2635.1,2634.5,0.01022492]
[1645390180527,1.00486327,2635.1,2634.5,0.01022492]
[1645390180927,1.00486327,2635.1,2634.8,0.00266051]
[1645390181829,0.00486327,2635.1,2634.6,0.95863281]
[1645390182032,0.00486327,2635.1,2634.8,0.00266051]
[1645390182893,0.00486327,2635.1,2634.6,0.95863281]
[1645390183296,0.00486327,2635.1,2634.8,0.00266051]
[1645390184091,0.00486327,2635.1,2634.5,0.01022492]
[1645390184492,0.00486327,2635.1,2634.8,0.00266051]
[1645390185294,0.00486327,2635.1,2634.5,0.93119155]
[1645390185693,0.00486327,2635.1,2634.8,0.00266051]
[1645390186520,0.00486327,2635.1,2634.5,0.93119155]
[1645390186719,0.00486327,2635.1,2634.8,0.00266051]
[1645390187720,0.00486327,2635.1,2634.5,0.93119155]
[1645390187921,0.00486327,2635.1,2634.8,0.00266051]
[1645390189023,0.00486327,2635.1,2634.6,3.67972734]
[1645390189322,0.00486327,2635.1,2634.8,0.00266051]
[1645390190168,0.00486327,2635.1,2634.5,0.93119155]
[1645390190369,0.00486327,2635.1,2634.8,0.00266051]
[1645390191477,0.00486327,2635.1,2634.5,0.93119155]
[1645390191671,0.00486327,2635.1,2634.8,0.00266051]
[1645390192473,0.00486327,2635.1,2634.8,0.00109521]
[1645390192671,0.00486327,2635.1,2634.5,0.93119155]
[1645390192871,0.00486327,2635.1,2634.8,0.00266051]
[1645390193824,0.00486327,2635.1,2634.5,0.01022492]
[1645390194020,0.00486327,2635.1,2634.7,0.000816]
[1645390194021,1.44569337,2635.1,2634.7,0.000816]
[1645390194419,2.44569337,2635.1,2634.7,0.000816]
[1645390194620,1.13317788,2634.8,2634.7,0.000816]
[1645390195022,1.13317788,2634.8,2634.5,0.01022492]
[1645390195220,1.13317788,2634.8,2634.6,0.00081601]
[1645390196222,1.00486167,2635.0,2634.5,0.01022492]
[1645390196427,0.00486167,2635.0,2634.6,0.00265849]
[1645390197221,0.90718558,2634.8,2634.6,0.00265849]
[1645390197470,0.90718558,2634.8,2634.5,0.01022492]
[1645390197670,0.90718558,2634.8,2634.7,0.0026605]
[1645390198671,0.00486167,2635.0,2634.5,0.01022492]
[1645390198870,0.00486167,2635.0,2634.6,0.00266052]
[1645390199871,1.07183047,2634.7,2634.5,0.01022492]
[1645390200871,2.20716007,2634.9,2634.5,0.01022492]
[1645390201071,1.20716007,2634.9,2634.5,0.01022492]
[1645390201330,2.20716007,2634.9,2634.5,0.01288549]
[1645390201522,1.20716007,2634.9,2634.5,0.01288549]
[1645390201728,2.20716007,2634.9,2634.5,0.01288549]
[1645390202123,2.20716007,2634.9,2634.5,0.01022492]
[1645390202324,0.94570664,2634.6,2634.5,0.01022492]
[1645390202526,2.20716007,2634.9,2634.5,0.01022492]
[1645390202723,3.64799017,2634.9,2634.5,0.01022492]
[1645390203126,1.20716007,2634.9,2634.5,0.01022492]
[1645390203724,1.20716007,2634.9,2634.6,0.00266054]
[1645390204527,1.20716007,2634.9,2634.5,0.01022492]
[1645390204728,2.20716007,2634.9,2634.5,0.01022492]
[1645390204967,2.20716007,2634.9,2634.6,0.00266052]
[1645390205770,2.20716007,2634.9,2634.5,0.01022492]
[1645390206274,2.20716007,2634.9,2634.6,0.00266052]
[1645390206571,1.20716007,2634.9,2634.6,0.00266052]
[1645390207073,1.20716007,2634.9,2634.5,0.01022492]
[1645390207274,1.20716007,2634.9,2634.6,0.00266052]
[1645390208171,1.20716007,2634.9,2634.5,0.01022492]
[1645390208373,1.20716007,2634.9,2634.6,0.00266052]
[1645390209330,1.20716007,2634.9,2634.5,1.05401204]
[1645390209527,1.20716007,2634.9,2634.6,0.00266052]
[1645390209732,1.20716007,2634.9,2634.6,3.68238786]
[1645390209932,1.20716007,2634.9,2634.6,0.00266052]
[1645390210130,0.00486007,2634.9,2634.6,0.00266052]
[1645390210331,0.00486007,2634.9,2634.6,3.68238786]
[1645390210530,1.44568857,2635.1,2634.6,3.67972734]
[1645390210930,1.44568857,2635.1,2634.6,0.00266052]
[1645390211131,1.44568857,2635.1,2634.6,3.68238786]
[1645390211332,1.44568857,2635.1,2634.6,0.00266052]
[1645390211733,1.44568857,2635.1,2634.5,1.05401204]
[1645390211933,1.44568857,2635.1,2634.6,3.67972734]
[1645390212137,1.44568857,2635.1,2634.7,0.00266054]
[1645390212138,0.00485847,2635.1,2634.7,0.00266054]
[1645390212341,0.00485847,2635.1,2634.7,1.61591452]
[1645390212583,0.00485847,2635.1,2634.8,3.67972734]
[1645390212782,0.00485847,2635.1,2634.9,1.61325398]
[1645390212983,0.00485847,2635.1,2635.0,3.67972734]
[1645390213182,0.00485847,2635.1,2635.0,4.73125691]
[1645390213386,0.00485847,2635.1,2635.0,6.34451089]
[1645390215985,0.0075185,2635.3,2635.0,6.34451089]
[1645390216233,0.0075185,2635.3,2635.1,1.61325398]
[1645390216436,0.0075185,2635.3,2635.2,3.67972734]
[1645390216633,0.00486167,2635.3,2635.2,3.67972734]
[1645390216833,0.00751856,2635.3,2635.2,3.67972734]
[1645390217836,0.00486167,2635.3,2635.2,3.67972734]
[1645390220029,0.00486167,2635.3,2635.2,5.29252881]
[1645390220624,0.00486167,2635.3,2635.2,3.67972734]
[1645390225430,0.00265687,2635.4,2635.2,3.67972734]
[1645390226228,0.00912939,2635.8,2635.2,3.67972734]
[1645390226427,0.00265686,2635.4,2635.2,3.67972734]
[1645390227485,0.00912939,2635.8,2635.5,0.89394873]
[1645390227676,0.01518855,2635.8,2635.6,3.67972734]
[1645390227878,0.01518855,2635.8,2635.5,0.89394873]
[1645390228675,0.00456271,2635.8,2635.5,0.89394873]
[1645390228876,0.00721946,2635.8,2635.5,0.89394873]
[1645390229877,0.00456271,2635.8,2635.5,0.89394873]
[1645390230077,0.00721946,2635.8,2635.5,0.89394873]
[1645390231083,0.00456271,2635.8,2635.5,0.89394873]
[1645390231330,0.00265675,2635.8,2635.5,0.89394873]
[1645390232325,1.00409791,2636.1,2635.5,0.89394873]
[1645390232527,0.00265675,2635.8,2635.5,0.89394873]
[1645390233231,0.00265675,2635.8,2635.0,4.27972734]
[1645390233427,1.00409791,2636.1,2635.0,3.97972734]
[1645390233627,0.00265675,2635.8,2635.0,3.67972734]
[1645390234327,0.00265675,2635.8,2635.3,1.04975616]
[1645390234527,0.00265675,2635.8,2635.4,3.67972734]
[1645390234728,1.00409791,2636.1,2635.3,1.04975616]
[1645390234989,0.00265678,2635.7,2635.3,1.04975616]
[1645390235478,0.00265678,2635.7,2635.4,3.67972734]
[1645390235677,0.00265678,2635.7,2635.3,1.04975616]
[1645390235678,0.00722588,2635.7,2635.3,1.04975616]
[1645390235881,0.0045691,2635.7,2635.3,1.04975616]
[1645390236076,0.00722588,2635.7,2635.3,1.04975616]
[1645390237079,0.0045691,2635.7,2635.3,1.04975616]
[1645390237281,0.0026568,2635.6,2635.3,1.04975616]
[1645390238282,0.0045691,2635.7,2635.3,1.04327849]
[1645390238484,0.00265681,2635.6,2635.3,1.04327849]
[1645390239523,0.0045691,2635.7,2635.3,1.04327849]
[1645390239723,0.00265681,2635.6,2635.3,1.04327849]
[1645390239923,0.00265681,2635.6,2635.4,3.67972734]
[1645390240324,0.00265681,2635.6,2635.3,1.04327849]
[1645390240724,0.0045691,2635.7,2635.3,1.04327849]
[1645390240927,0.00265681,2635.6,2635.3,1.04327849]
[1645390241331,0.00265681,2635.6,2635.4,3.67972734]
[1645390241524,0.00265681,2635.6,2635.3,0.99327849]
[1645390241725,0.00722432,2635.6,2635.4,3.67972734]
[1645390241926,0.00456751,2635.6,2635.3,0.99327849]
[1645390242125,0.00722432,2635.6,2635.3,0.99327849]
[1645390242977,0.00456751,2635.6,2635.3,0.99327849]
[1645390243377,0.00722432,2635.6,2635.3,0.99327849]
[1645390244181,0.00456751,2635.6,2635.4,3.67972734]
[1645390244579,0.00722432,2635.6,2635.3,0.99327849]
[1645390244877,0.00722432,2635.6,2635.4,3.67972734]
[1645390245578,0.00456751,2635.6,2635.4,3.67972734]
[1645390245777,0.00722431,2635.6,2635.4,3.67972734]
[1645390245987,0.00722431,2635.6,2635.3,0.99327849]
[1645390246229,0.00722431,2635.6,2635.4,3.67972734]
[1645390246433,0.00722431,2635.6,2635.3,0.99327849]
[1645390246631,0.00456751,2635.6,2635.3,0.99327849]
[1645390246828,0.0026568,2635.6,2635.3,0.99327849]
[1645390247045,0.00456668,2635.8,2635.3,0.99327849]
[1645390247232,0.01062559,2636.0,2635.3,0.99327849]
[1645390247832,0.00456668,2636.1,2635.3,0.99327849]
[1645390249434,0.00184023,2635.8,2635.3,0.99327849]
[1645390250287,0.00456668,2636.1,2635.4,3.67972734]
[1645390250484,0.00184019,2635.7,2635.4,3.67972734]
[1645390250685,0.00184019,2635.7,2635.3,0.99327849]
[1645390250887,0.00184019,2635.7,2635.4,3.67972734]
[1645390251284,0.00184019,2635.7,2635.3,0.99327849]
[1645390251484,2.23257353,2636.2,2635.7,1.0937006]
[1645390251689,0.01062553,2636.1,2635.7,1.0937006]
[1645390252787,1.13428353,2636.2,2635.7,1.0937006]
[1645390252985,0.00265463,2636.0,2635.7,1.0937006]
[1645390253824,1.13428353,2636.2,2635.7,1.0937006]
[1645390254229,0.00265464,2636.0,2635.7,1.0937006]
[1645390255025,2.57511363,2636.2,2635.7,1.0937006]
[1645390255224,0.00265464,2636.0,2635.7,1.0937006]
[1645390256228,0.00427442,2636.0,2635.7,1.0937006]
[1645390256427,0.00693111,2636.0,2635.7,1.0937006]
[1645390257481,0.00427442,2636.0,2635.7,1.0937006]
[1645390257680,0.00693111,2636.0,2635.7,1.0937006]
[1645390257880,0.00693111,2636.0,2635.0,0.00265767]
[1645390258080,0.00693111,2636.0,2635.0,1.61536625]
[1645390258280,0.00693111,2636.0,2635.1,3.67972734]
[1645390258482,0.00693111,2636.0,2635.2,1.61270858]
[1645390258683,0.00427442,2636.0,2635.3,3.67972734]
[1645390258887,0.00265673,2635.7,2635.4,1.61270858]
[1645390259082,0.00265673,2635.7,2635.4,2.69773038]
[1645390259282,0.00265673,2635.7,2635.5,1.61270858]
[1645390259883,0.00427442,2636.0,2635.5,1.61270858]
[1645390260084,0.00265677,2635.7,2635.5,1.61270858]
[1645390261083,0.00427282,2635.9,2635.5,1.61270858]
[1645390261329,0.00265677,2635.7,2635.5,1.61270858]
[1645390262230,0.00427282,2635.9,2635.5,1.61270858]
[1645390262429,0.00265677,2635.7,2635.5,1.61270858]
[1645390263430,0.00427282,2635.9,2635.5,5.29243592]
[1645390263630,0.00265677,2635.7,2635.6,1.61270858]
[1645390264027,0.00265677,2635.7,2635.5,1.61270858]
[1645390264231,0.00265677,2635.7,2635.4,1.0850218]
[1645390264428,0.00265677,2635.7,2635.5,1.61273506]
[1645390264634,0.00427282,2635.9,2635.5,1.61273506]
[1645390264829,0.00265673,2635.7,2635.5,1.61273506]
[1645390265875,0.00427122,2635.8,2635.5,1.61273506]
[1645390266084,0.00265677,2635.7,2635.5,1.61273506]
[1645390266978,0.00427122,2635.8,2635.5,1.61273506]
[1645390267377,0.00265677,2635.7,2635.5,1.61273506]
[1645390268180,0.00427122,2635.8,2635.5,1.61273506]
[1645390268580,0.00265677,2635.7,2635.5,1.61273506]
[1645390269431,0.00427122,2635.8,2635.5,1.61273506]
[1645390269835,0.00265677,2635.7,2635.5,1.61273506]
[1645390270527,0.00725802,2635.7,2635.5,1.61273506]
[1645390270731,0.00460125,2635.7,2635.5,1.61273506]
[1645390270929,0.00725802,2635.7,2635.5,1.61273506]
[1645390271926,0.00460125,2635.7,2635.5,1.61273506]
[1645390272130,0.00725802,2635.7,2635.5,1.61273506]
[1645390272979,0.00460125,2635.7,2635.5,1.61273506]
[1645390273379,0.00725802,2635.7,2635.5,1.61273506]
[1645390274179,0.00460125,2635.7,2635.5,1.61273506]
[1645390274579,0.00725802,2635.7,2635.5,1.61273506]
[1645390275083,0.00725802,2635.7,2635.6,1.61267967]
[1645390275282,0.00725802,2635.7,2635.5,1.61267967]
[1645390275480,0.00460125,2635.7,2635.6,1.61267967]
[1645390275680,0.00460125,2635.7,2635.0,0.00265753]
[1645390276344,1.4408301,2635.6,2635.0,0.00265753]
[1645390276543,1.4408301,2635.3,2635.0,0.00265753]
[1645390276736,0.89462418,2635.3,2634.8,7.38]
[1645390277135,2.4408301,2635.5,2635.0,0.00265728]
[1645390277336,1.4408301,2635.5,2635.0,0.00265728]
[1645390277936,1.4408301,2635.5,2634.8,7.38]
[1645390278135,0.89683622,2635.5,2635.0,0.00265725]
[1645390278336,2.33766632,2635.5,2635.0,0.00265725]
[1645390278940,1.4408301,2635.4,2635.0,0.00265725]
[1645390279139,1.4408301,2635.4,2634.8,7.38]
[1645390279337,1.4408301,2635.4,2635.0,0.00265725]
[1645390279840,2.33766632,2635.5,2635.0,0.00265725]
[1645390280282,0.89683622,2635.5,2634.8,7.38]
[1645390280479,2.33766632,2635.5,2635.0,0.00265725]
[1645390281480,0.00459649,2635.4,2634.8,7.38]
[1645390281682,0.10299649,2635.4,2635.0,0.00265725]
[1645390282685,0.10299649,2635.4,2634.8,7.38]
[1645390282887,0.00459649,2635.4,2635.0,0.00242287]
[1645390283934,0.00459649,2635.4,2634.9,1.16867854]
[1645390284128,0.00459649,2635.4,2635.0,0.00242287]
[1645390285132,0.00459649,2635.4,2634.8,7.38]
[1645390285329,0.00459649,2635.4,2635.0,0.00242287]
[1645390286332,0.00459649,2635.4,2634.8,7.38]
[1645390286534,0.00459649,2635.4,2635.0,0.00242287]
[1645390287577,0.00459649,2635.4,2634.8,7.38]
[1645390287783,0.00459649,2635.4,2635.0,0.00243854]
[1645390288778,0.00459649,2635.4,2634.8,7.38]
[1645390289080,0.00459649,2635.4,2635.0,0.00243854]
[1645390289985,0.00459649,2635.4,2634.8,7.68]
[1645390290182,0.00459649,2635.4,2635.0,0.00243854]
[1645390290784,2.85133277,2635.7,2635.0,0.00243854]
[1645390290980,2.85133277,2635.7,2635.2,0.87355161]
[1645390291239,2.85133181,2635.7,2635.2,0.87355161]
[1645390291836,2.85133181,2635.7,2635.0,0.00243758]
[1645390292237,2.8488949,2635.7,2634.8,7.38]
[1645390292636,2.85133181,2635.7,2635.0,0.00243758]
[1645390292836,2.85133181,2635.7,2635.0,1.11021694]
[1645390293443,2.8488949,2635.7,2635.0,1.10777936]
[1645390293938,2.85133181,2635.7,2635.0,1.11021694]
[1645390294637,2.8488949,2635.7,2635.0,1.10777936]
[1645390295082,2.85133188,2635.7,2635.0,1.11021701]
[1645390295985,2.85133188,2635.7,2635.0,1.10777936]
[1645390295986,2.8488949,2635.7,2635.0,1.10777936]
[1645390296178,2.85133188,2635.7,2635.0,1.11021701]
[1645390297082,2.8488949,2635.7,2635.0,1.10777936]
[1645390297380,2.85133188,2635.7,2635.0,1.11021701]
[1645390297780,2.85133188,2635.7,2635.0,1.10909621]
[1645390298379,2.8488949,2635.7,2635.0,1.10665856]
[1645390298582,2.85133188,2635.7,2635.0,1.1090962]
[1645390299439,2.8488949,2635.7,2635.0,1.10665856]
[1645390299834,2.8488949,2635.7,2635.0,1.1090962]
[1645390299835,2.85133188,2635.7,2635.0,1.1090962]
[1645390300435,2.80133188,2635.7,2635.0,1.1090962]
[1645390300637,2.80133188,2635.7,2635.1,2.6195477]
[1645390300638,0.0045949,2635.7,2635.1,2.6195477]
[1645390300839,0.0045949,2635.7,2635.2,1.61282124]
[1645390301037,0.00703188,2635.7,2635.2,1.61282124]
[1645390301242,0.00703188,2635.7,2635.6,0.9886708]
[1645390301835,0.0045949,2635.7,2635.6,0.9886708]
[1645390305987,0.00243711,2635.8,2635.6,0.9886708]
[1645390306629,0.00914896,2636.0,2635.6,0.9886708]
[1645390307037,0.00243709,2635.8,2635.6,0.9886708]
[1645390307432,0.00243709,2635.8,2635.1,3.67972734]
[1645390307635,0.00243709,2635.8,2635.2,1.61273326]
[1645390307834,0.00243709,2635.8,2635.3,3.67972734]
[1645390308035,0.00460125,2636.0,2635.3,3.67972734]
[1645390308234,0.00243703,2635.7,2635.1,3.97972734]
[1645390308444,0.00243703,2635.7,2635.2,1.6127344]
[1645390308638,0.00243703,2635.7,2635.3,3.67972734]
[1645390308836,0.00243703,2635.7,2635.5,0.85380761]
[1645390309042,0.00460125,2636.0,2635.5,0.85380761]
[1645390309236,0.00460125,2636.0,2635.1,3.97972734]
[1645390309437,0.00243706,2635.7,2635.2,1.61276508]
[1645390309638,0.00243706,2635.7,2635.3,3.67972734]
[1645390310082,0.00243706,2635.7,2635.3,1.10830698]
[1645390310386,0.01434839,2636.0,2635.4,3.67972734]
[1645390310387,0.00460125,2636.0,2635.4,3.67972734]
[1645390310589,0.00692491,2635.7,2635.4,3.67972734]
[1645390310988,0.00692491,2635.7,2635.3,1.10830698]
[1645390311183,0.00692491,2635.7,2635.4,3.67972734]
[1645390311590,0.00448785,2635.7,2635.4,3.67972734]
[1645390311888,0.00692494,2635.7,2635.4,3.67972734]
[1645390312685,0.00448785,2635.7,2635.4,3.67972734]
[1645390312886,0.00692494,2635.7,2635.3,1.10830698]
[1645390313087,0.00692494,2635.7,2635.4,3.67972734]
[1645390313833,0.00448785,2635.7,2635.3,1.10830698]
[1645390314033,0.00448785,2635.7,2635.4,3.67972734]
[1645390314238,0.00448785,2635.7,2635.3,1.10830698]
[1645390314239,0.00692494,2635.7,2635.3,1.10830698]
[1645390314430,0.00692494,2635.7,2635.4,3.67972734]
[1645390315230,0.00448785,2635.7,2635.4,3.67972734]
[1645390315432,0.00692494,2635.7,2635.4,3.67972734]
[1645390315932,0.00692494,2635.7,2635.3,1.10830698]
[1645390316232,0.00448785,2635.7,2635.3,1.10830698]
[1645390316633,0.00692491,2635.7,2635.3,1.10830698]
[1645390316934,0.00692491,2635.7,2635.4,3.67972734]
[1645390317578,0.0029677,2635.7,2635.4,3.67972734]
[1645390317779,0.00540479,2635.7,2635.4,3.67972734]
[1645390318778,0.0029677,2635.7,2635.4,3.67972734]
[1645390318978,0.00540479,2635.7,2635.4,3.67972734]
[1645390319982,0.0029677,2635.7,2635.4,3.67972734]
[1645390320181,0.00540479,2635.7,2635.3,1.10830698]
[1645390320382,0.00540479,2635.7,2635.4,3.67972734]
[1645390321236,0.0029677,2635.7,2635.3,1.10830698]
[1645390321438,0.00540479,2635.7,2635.4,3.67972734]
[1645390321840,0.00692335,2635.7,2635.4,3.67972734]
[1645390322441,0.00448626,2635.7,2635.4,3.67972734]
[1645390322642,0.00692335,2635.7,2635.4,3.67972734]
[1645390323250,0.00692335,2635.7,2635.3,1.10830698]
[1645390323447,0.00448626,2635.7,2635.4,5.29238959]
[1645390323643,0.00448626,2635.7,2635.4,3.67972734]
[1645390323843,0.00692335,2635.7,2635.4,3.67972734]
[1645390324644,0.00448626,2635.7,2635.4,3.67972734]
[1645390325089,0.00692335,2635.7,2635.3,1.10830698]
[1645390325295,0.00692335,2635.7,2635.4,3.67972734]
[1645390325889,0.00448626,2635.7,2635.4,3.67972734]
[1645390326290,0.00692335,2635.7,2635.4,3.67972734]
[1645390327192,0.00448626,2635.7,2635.4,3.67972734]
[1645390327392,0.00692335,2635.7,2635.4,3.67972734]
[1645390328391,0.00448626,2635.7,2635.5,1.61264967]
[1645390328589,0.00692335,2635.7,2635.5,1.61264967]
[1645390329436,0.00692335,2635.7,2635.3,1.10830698]
[1645390329635,0.00448626,2635.7,2635.4,3.67972734]
[1645390329835,0.00692338,2635.7,2635.4,3.67972734]
[1645390330039,0.00692338,2635.7,2635.3,1.10830698]
[1645390330439,0.00692338,2635.7,2635.4,3.67972734]
[1645390330835,0.00448626,2635.7,2635.4,3.67972734]
[1645390331037,0.00692335,2635.7,2635.4,3.67972734]
[1645390331936,0.00448626,2635.7,2635.4,3.67972734]
[1645390332336,0.00692335,2635.7,2635.4,3.67972734]
[1645390333189,0.00448626,2635.7,2635.4,3.67972734]
[1645390333387,0.00692335,2635.7,2635.4,3.67972734]
[1645390334387,0.00448626,2635.7,2635.4,3.67972734]
[1645390334589,0.00692335,2635.7,2635.4,3.67972734]
[1645390335488,0.00448626,2635.7,2635.4,3.67972734]
[1645390335889,0.00692335,2635.7,2635.4,3.67972734]
[1645390336731,0.00448626,2635.7,2635.4,3.67972734]
[1645390336935,0.00692335,2635.7,2635.4,3.67972734]
[1645390337937,0.00448626,2635.7,2635.4,3.67972734]
[1645390338136,0.00692335,2635.7,2635.4,3.67972734]
[1645390339136,0.00448626,2635.7,2635.4,3.67972734]
[1645390339336,0.00692335,2635.7,2635.4,3.67972734]
[1645390340383,0.00448626,2635.7,2635.3,1.10830698]
[1645390340587,0.00692335,2635.7,2635.4,3.67972734]
[1645390341385,1.18671815,2636.2,2635.8,0.93404183]
[1645390341985,0.00974709,2636.1,2635.8,0.93404183]
[1645390342886,1.18671815,2636.2,2635.8,0.93486947]
[1645390344032,1.18671815,2636.2,2635.8,0.93404183]
[1645390344231,1.18671815,2636.2,2635.8,0.93486947]
[1645390344433,2.62754825,2636.2,2635.8,0.93486947]
[1645390345232,2.62754825,2636.2,2635.8,0.93404183]
[1645390345434,2.63020479,2636.2,2635.8,0.93669878]
[1645390346035,1.18937469,2636.2,2635.8,0.93669878]
[1645390346235,0.00397393,2636.0,2635.8,0.93669878]
[1645390346435,0.00397393,2636.0,2635.8,0.93404183]
[1645390346634,0.00397393,2636.0,2635.8,0.93669878]
[1645390347045,22.0,2635.6,2633.4,2.91574759]
[1645390347242,22.0,2635.6,2633.2,0.64012297]
[1645390347243,5.0,2633.8,2633.2,0.64012297]
[1645390347503,5.0,2633.8,2632.5,2.45720537]
[1645390347504,0.01246957,2633.3,2632.2,2.41693352]
[1645390347696,0.01246957,2633.3,2632.2,0.72521754]